fUST/lending_fUST_20240209
["ID","MTS","AMOUNT","RATE_DAILY","PERIOD"]
[313627082,1707489045402,-500.0,0.00024931,2]
[313627083,1707489045412,-503.35989624,0.00024931,2]
[313627084,1707489045421,-151.0,0.00024931,2]
[313627085,1707489045431,-151.0,0.00024931,2]
[313627086,1707489045440,-281.702685,0.00024931,2]
[313627087,1707489045449,-500.0,0.00024931,2]
[313627088,1707489045458,-500.0,0.00024931,2]
[313627089,1707489045468,-488.59593305,0.00024931,2]
[313627090,1707489045477,-500.0,0.00024931,2]
[313627091,1707489045486,-500.0,0.00024931,2]
[313627092,1707489045495,-500.0,0.00024931,2]
[313627093,1707489045505,-500.0,0.00024931,2]
[313627094,1707489045514,-500.0,0.00024931,2]
[313627095,1707489045523,-500.0,0.00024931,2]
[313627096,1707489045535,-500.0,0.00024931,2]
[313627097,1707489045544,-500.0,0.00024931,2]
[313627098,1707489045554,-500.0,0.00024931,2]
[313627099,1707489045563,-547.5314804,0.00024931,2]
[313627100,1707489045573,-516.19055671,0.00024931,2]
[313627101,1707489045584,-500.0,0.00024931,2]
[313627102,1707489045593,-500.0,0.00024931,2]
[313627103,1707489045603,-529.90840898,0.00024931,2]
[313627104,1707489045614,-300.0,0.00024931,2]
[313627105,1707489045624,-505.93932868,0.00024931,2]
[313627106,1707489045634,-500.0,0.00024931,2]
[313627107,1707489045643,-500.0,0.00024931,2]
[313627108,1707489045652,-553.133948,0.00024931,2]
[313627109,1707489045662,-199.57667714,0.00024931,2]
[313627110,1707489045671,-396.3414006,0.00024931,2]
[313627111,1707489045681,-500.0,0.00024931,2]
[313627112,1707489045691,-389.62151504,0.00024931,2]
[313627113,1707489045702,-1000.0,0.00024931,2]
[313627114,1707489045712,-500.0,0.00024931,2]
[313627115,1707489045722,-500.0,0.00024931,2]
[313627116,1707489045733,-626.02172696,0.00024931,2]
[313627117,1707489045742,-500.0,0.00024931,2]
[313627118,1707489045753,-500.0,0.00024931,2]
[313627119,1707489045763,-500.0,0.00024931,2]
[313627120,1707489045774,-547.76616037,0.00024931,2]
[313627121,1707489045792,-643.74869699,0.00024931,2]
[313627122,1707489045804,-150.0,0.00024931,2]
[313627123,1707489045815,-500.0,0.00024931,2]
[313627124,1707489045826,-855.94,0.00024931,2]
[313627125,1707489045838,-540.78652371,0.00024931,2]
[313627126,1707489045848,-500.0,0.00024931,2]
[313627127,1707489045859,-500.0,0.00024931,2]
[313627128,1707489045870,-632.395108,0.00024931,2]
[313627129,1707489045880,-632.395108,0.00024931,2]
[313627130,1707489045890,-632.395108,0.00024931,2]
[313627131,1707489045900,-632.395108,0.00024931,2]
[313627132,1707489045911,-632.395108,0.00024931,2]
[313627133,1707489045921,-632.395108,0.00024931,2]
[313627134,1707489045931,-500.0,0.00024931,2]
[313627135,1707489045941,-500.0,0.00024931,2]
[313627136,1707489045951,-523.39679303,0.00024931,2]
[313627137,1707489045961,-314.94177893,0.00024931,2]
[313627138,1707489045972,-500.0,0.00024931,2]
[313627139,1707489045982,-506.31862761,0.00024931,2]
[313627140,1707489045992,-538.84433048,0.00024931,2]
[313627141,1707489046002,-151.0,0.00024931,2]
[313627142,1707489046011,-260.949418,0.00024931,2]
[313627143,1707489046022,-536.25463654,0.00024931,2]
[313627144,1707489046037,-500.0,0.00024931,2]
[313627145,1707489046047,-322.95627922,0.00024931,2]
[313627146,1707489046056,-500.0,0.00024931,2]
[313627147,1707489046066,-500.0,0.00024931,2]
[313627148,1707489046075,-626.72166177,0.00024931,2]
[313627149,1707489046084,-607.77340214,0.00024931,2]
[313627150,1707489046094,-1514.43,0.00024931,2]
[313627151,1707489046103,-519.11680685,0.00024931,2]
[313627152,1707489046113,-500.0,0.00024931,2]
[313627153,1707489046122,-1005.23,0.00024931,2]
[313627154,1707489046132,-528.66723267,0.00024931,2]
[313627155,1707489046141,-500.0,0.00024931,2]
[313627156,1707489046150,-2144.53,0.00024931,2]
[313627157,1707489046159,-500.0,0.00024931,5]
[313627158,1707489046224,-500.0,0.00024931,2]
[313627159,1707489046240,-500.0,0.00024931,2]
[313627160,1707489046250,-500.0,0.00024931,2]
[313627161,1707489046260,-520.04963895,0.00024931,2]
[313627162,1707489046269,-500.0,0.00024931,2]
[313627163,1707489046281,-500.0,0.00024931,2]
[313627165,1707489046291,-529.54573735,0.00024931,2]
[313627167,1707489046301,-348.987167,0.00024931,2]
[313627168,1707489046310,-500.0,0.00024931,2]
[313627170,1707489046320,-500.0,0.00024931,2]
[313627171,1707489046329,-577.89,0.00024931,2]
[313627172,1707489046339,-500.0,0.00024931,2]
[313627173,1707489046348,-502.6903897,0.00024931,2]
[313627175,1707489046358,-514.76499183,0.00024931,2]
[313627177,1707489046366,-580.97601493,0.00024931,2]
[313627179,1707489046376,-500.0,0.00024931,2]
[313627181,1707489046385,-500.0,0.00024931,2]
[313627183,1707489046395,-537.31763963,0.00024931,2]
[313627185,1707489046404,-500.0,0.00024931,2]
[313627187,1707489046414,-500.0,0.00024931,2]
[313627190,1707489046424,-500.0,0.00024931,2]
[313627193,1707489046433,-500.0,0.00024931,2]
[313627196,1707489046442,-500.0,0.00024931,2]
[313627198,1707489046452,-500.0,0.00024931,2]
[313627200,1707489046462,-510.479744,0.00024931,2]
[313627203,1707489046472,-628.33,0.00024931,2]
[313627206,1707489046482,-203.4850144,0.00024931,2]
[313627209,1707489046491,-183.95635184,0.00024931,2]
[313627212,1707489046501,-500.0,0.00024931,2]
[313627215,1707489046511,-500.0,0.00024931,2]
[313627218,1707489046520,-514.0850926,0.00024931,2]
[313627221,1707489046531,-500.0,0.00024931,2]
[313627223,1707489046540,-500.0,0.00024931,2]
[313627224,1707489046550,-1378.37,0.00024931,2]
[313627225,1707489046559,-7892.94,0.00024931,2]
[313627226,1707489046568,-500.0,0.00024931,2]
[313627227,1707489046578,-500.0,0.00024931,2]
[313627228,1707489046589,-500.0,0.00024931,2]
[313627229,1707489046598,-2140.421876,0.00024931,2]
[313627230,1707489046607,-2140.421876,0.00024931,2]
[313627231,1707489046619,-500.0,0.00024931,2]
[313627232,1707489046629,-2140.421876,0.00024931,2]
[313627233,1707489046638,-514.92945762,0.00024931,2]
[313627234,1707489046647,-2140.421876,0.00024931,2]
[313627235,1707489046657,-2140.421876,0.00024931,2]
[313627236,1707489046667,-2140.421876,0.00024931,2]
[313627237,1707489046676,-500.0,0.00024931,2]
[313627238,1707489046685,-2140.421876,0.00024931,2]
[313627239,1707489046697,-2140.421886,0.00024931,2]
[313627240,1707489046706,-500.0,0.00024931,2]
[313627241,1707489046715,-3676.92,0.00024931,2]
[313627242,1707489046724,-500.0,0.00024931,2]
[313627243,1707489046734,-500.0,0.00024931,2]
[313627244,1707489046742,-258.09867433,0.00024931,2]
[313627245,1707489046755,-151.3819078,0.00024931,2]
[313627246,1707489046774,-500.0,0.00024931,2]
[313627247,1707489046792,-500.0,0.00024931,2]
[313627248,1707489046808,-500.0,0.00024931,2]
[313627249,1707489046824,-215.6477464,0.00024931,2]
[313627250,1707489046840,-500.0,0.00024931,2]
[313627251,1707489046855,-500.0,0.00024931,2]
[313627252,1707489046869,-500.0,0.00024931,2]
[313627253,1707489046885,-500.0,0.00024931,2]
[313627254,1707489046903,-156.48916875,0.00024931,2]
[313627255,1707489046916,-500.0,0.00024931,2]
[313627256,1707489046933,-529.25469451,0.00024931,2]
[313627257,1707489046949,-522.21522632,0.00024931,2]
[313627258,1707489046962,-533.89353083,0.00024931,2]
[313627259,1707489046976,-13876.66,0.00024931,2]
[313627260,1707489046993,-541.37409378,0.00024931,2]
[313627261,1707489047010,-739.4,0.00024931,2]
[313627262,1707489047027,-627.50932026,0.00024931,2]
[313627263,1707489047041,-500.0,0.00024931,2]
[313627264,1707489047054,-549.35560284,0.00024931,2]
[313627265,1707489047070,-500.0,0.00024931,2]
[313627266,1707489047085,-500.0,0.00024931,2]
[313627267,1707489047098,-521.01369552,0.00024931,2]
[313627268,1707489047111,-507.054466,0.00024931,2]
[313627269,1707489047125,-500.0,0.00024931,2]
[313627270,1707489047139,-9025.92,0.00024931,2]
[313627271,1707489047153,-500.0,0.00024931,2]
[313627272,1707489047166,-506.05272141,0.00024931,2]
[313627273,1707489047180,-500.0,0.00024931,2]
[313627274,1707489047194,-1043.53,0.00024931,2]
[313627275,1707489047209,-500.0,0.00024931,2]
[313627276,1707489047223,-205.84548173,0.00024931,2]
[313627277,1707489047235,-10407.67,0.00024931,2]
[313627278,1707489047248,-500.0,0.00024931,2]
[313627279,1707489047261,-533.96531696,0.00024931,2]
[313627280,1707489047274,-500.0,0.00024931,2]
[313627281,1707489047291,-628.47416371,0.00024931,2]
[313627282,1707489047305,-500.0,0.00024931,2]
[313627283,1707489047318,-500.0,0.00024931,2]
[313627284,1707489047331,-606.67763452,0.00024931,2]
[313627285,1707489047344,-500.0,0.00024931,2]
[313627286,1707489047357,-500.0,0.00024931,2]
[313627287,1707489047370,-559.01484546,0.00024931,2]
[313627288,1707489047383,-500.0,0.00024931,2]
[313627289,1707489047396,-356.63522463,0.00024931,2]
[313627290,1707489047409,-536.35981934,0.00024931,2]
[313627291,1707489047422,-500.0,0.00024931,2]
[313627292,1707489047434,-500.0,0.00024931,2]
[313627293,1707489047447,-500.0,0.00024931,2]
[313627294,1707489047460,-405.47518841,0.00024931,2]
[313627295,1707489047472,-500.0,0.00024931,2]
[313627296,1707489047484,-500.0,0.00024931,2]
[313627297,1707489047497,-1214.01,0.00024931,2]
[313627298,1707489047509,-578.2,0.00024931,2]
[313627299,1707489047519,-1594.38,0.00024931,2]
[313627300,1707489047531,-507.30515764,0.00024931,2]
[313627301,1707489047644,-500.0,0.00024931,2]
[313627302,1707489047658,-500.0,0.00024931,2]
[313627303,1707489047670,-5900.13,0.00024931,2]
[313627304,1707489047681,-500.0,0.00024931,2]
[313627305,1707489047693,-500.0,0.00024931,2]
[313627306,1707489047702,-151.0,0.00024931,2]
[313627307,1707489047711,-151.0,0.00024931,2]
[313627308,1707489047720,-500.0,0.00024931,2]
[313627309,1707489047729,-164.67083156,0.00024931,2]
[313627310,1707489047739,-500.0,0.00024931,2]
[313627311,1707489047748,-500.0,0.00024931,2]
[313627312,1707489047758,-586.22,0.00024931,2]
[313627313,1707489047766,-500.0,0.00024931,2]
[313627314,1707489047776,-1193.84,0.00024931,2]
[313627315,1707489047788,-515.7,0.00024931,2]
[313627316,1707489047797,-500.0,0.00024931,2]
[313627317,1707489047806,-15875.17,0.00024931,2]
[313627318,1707489047816,-500.0,0.00024931,2]
[313627319,1707489047829,-500.0,0.00024931,2]
[313627320,1707489047844,-542.83356427,0.00024931,2]
[313627321,1707489047856,-500.0,0.00024931,2]
[313627322,1707489047866,-442.2542933,0.00024931,2]
[313627323,1707489047879,-500.0,0.00024931,2]
[313627324,1707489047889,-500.0,0.00024931,2]
[313627325,1707489047899,-500.0,0.00024931,2]
[313627326,1707489047908,-4115.58,0.00024931,2]
[313627327,1707489047918,-1327.92,0.00024931,2]
[313627328,1707489047928,-5086.52,0.00024931,2]
[313627329,1707489047938,-8628.83,0.00024931,2]
[313627330,1707489047947,-518.17,0.00024931,2]
[313627331,1707489047957,-937.12,0.00024931,2]
[313627332,1707489047967,-503.36522534,0.00024931,2]
[313627333,1707489047976,-2020.9,0.00024931,2]
[313627334,1707489047986,-505.06794877,0.00024931,2]
[313627335,1707489047995,-1216.89,0.00024931,2]
[313627336,1707489048005,-500.0,0.00024931,2]
[313627337,1707489048015,-629.43877187,0.00024931,2]
[313627338,1707489048024,-632.395108,0.00024997,2]
[313627339,1707489048037,-632.39511121,0.00024997,2]
[313627340,1707489048046,-7408.73547856,0.00025,2]
[313627341,1707489048055,-335.67869431,0.00025,2]
[313627342,1707489048064,-154.98450155,0.00025,2]
[313627343,1707489048073,-4739.90020037,0.00025,2]
[313627344,1707489048082,-155.20978745,0.00025,2]
[313627345,1707489048091,-155.54718526,0.00025,2]
[313627346,1707489048101,-155.73981733,0.00025,2]
[313627347,1707489048111,-155.13030946,0.00025,2]
[313627348,1707489048121,-27016.0328197,0.00025,2]
[313627349,1707489048130,-1000.0,0.00025,25]
[313627350,1707489048141,-1746.80190151,0.00025,2]
[313627351,1707489048151,-2380.91522714,0.00025,2]
[313627352,1707489048161,-1005.82136089,0.00025,2]
[313627353,1707489048172,-2010.0,0.00025,2]
[313627354,1707489048182,-2000.0,0.00025,2]
[313627355,1707489048192,-16470.37926509,0.00025,2]
[313627356,1707489048203,-181.948371,0.00025,2]
[313627357,1707489048214,-70647.40200132,0.00025,2]
[313627358,1707489048225,-2000.0,0.0002501,2]
[313627359,1707489048236,-2000.0,0.0002502,2]
[313627360,1707489048246,-2000.0,0.0002503,2]
[313627361,1707489048257,-273.6182776,0.00025039,2]
[313627362,1707489048266,-2000.0,0.0002504,2]
[313627363,1707489048276,-2000.0,0.0002505,2]
[313627364,1707489048287,-2000.0,0.0002506,2]
[313627365,1707489048296,-2000.0,0.0002507,2]
[313627366,1707489048306,-2000.0,0.0002508,2]
[313627367,1707489048315,-2000.0,0.0002509,2]
[313627368,1707489048324,-2000.0,0.000251,2]
[313627369,1707489048334,-2000.0,0.0002511,2]
[313627370,1707489048343,-2000.0,0.0002512,2]
[313627371,1707489048353,-2000.0,0.0002513,2]
[313627372,1707489048362,-2000.0,0.0002514,2]
[313627373,1707489048372,-2000.0,0.0002515,2]
[313627374,1707489048382,-151.0,0.00025151,2]
[313627375,1707489048391,-2000.0,0.0002516,2]
[313627376,1707489048400,-2000.0,0.0002517,2]
[313627377,1707489048409,-2000.0,0.0002518,2]
[313627378,1707489048419,-2000.0,0.0002519,2]
[313627379,1707489048428,-2000.0,0.000252,2]
[313627380,1707489048438,-500.0,0.00025205,2]
[313627381,1707489048448,-1038.92,0.00025205,2]
[313627382,1707489048457,-500.0,0.00025205,2]
[313627383,1707489048467,-500.0,0.00025205,2]
[313627384,1707489048476,-500.0,0.00025205,2]
[313627385,1707489048486,-500.0,0.00025205,2]
[313627386,1707489048495,-1000.0,0.00025205,2]
[313627387,1707489048505,-500.0,0.00025205,2]
[313627388,1707489048514,-500.0,0.00025205,2]
[313627389,1707489048524,-210.44529461,0.00025205,2]
[313627390,1707489048534,-855.94,0.00025205,2]
[313627391,1707489048544,-500.0,0.00025205,2]
[313627392,1707489048553,-500.0,0.00025205,2]
[313627393,1707489048562,-562.06092846,0.00025205,2]
[313627394,1707489048572,-500.0,0.00025205,2]
[313627395,1707489048583,-531.84942507,0.00025205,2]
[313627396,1707489048593,-569.09775,0.00025205,2]
[313627397,1707489048603,-500.0,0.00025205,2]
[313627398,1707489048614,-1514.43,0.00025205,2]
[313627399,1707489048624,-500.0,0.00025205,2]
[313627400,1707489048634,-1005.23,0.00025205,2]
[313627401,1707489048643,-2144.53,0.00025205,2]
[313627402,1707489048653,-507.36286595,0.00025205,5]
[313627403,1707489048663,-500.0,0.00025205,2]
[313627404,1707489048672,-538.93969599,0.00025205,2]
[313627405,1707489048682,-500.0,0.00025205,2]
[313627406,1707489048691,-500.0,0.00025205,2]
[313627407,1707489048701,-500.0,0.00025205,2]
[313627408,1707489048711,-620.69089419,0.00025205,2]
[313627409,1707489048721,-577.89,0.00025205,2]
[313627410,1707489048731,-532.41421159,0.00025205,2]
[313627411,1707489048741,-500.0,0.00025205,2]
[313627412,1707489048751,-500.0,0.00025205,2]
[313627413,1707489048760,-500.0,0.00025205,2]
[313627414,1707489048770,-500.0,0.00025205,2]
[313627415,1707489048781,-588.8760225,0.00025205,2]
[313627416,1707489048791,-628.33,0.00025205,2]
[313627417,1707489048800,-500.0,0.00025205,2]
[313627418,1707489048809,-500.0,0.00025205,2]
[313627419,1707489048819,-512.37488173,0.00025205,2]
[313627420,1707489048829,-500.0,0.00025205,2]
[313627421,1707489048840,-1378.37,0.00025205,2]
[313627422,1707489048850,-7892.94,0.00025205,2]
[313627423,1707489048860,-500.0,0.00025205,2]
[313627424,1707489048869,-500.0,0.00025205,2]
[313627425,1707489048879,-500.0,0.00025205,2]
[313627426,1707489048888,-500.0,0.00025205,2]
[313627427,1707489048898,-3676.92,0.00025205,2]
[313627428,1707489048907,-500.0,0.00025205,2]
[313627429,1707489048916,-500.0,0.00025205,2]
[313627430,1707489048926,-486.40156789,0.00025205,2]
[313627431,1707489048936,-500.0,0.00025205,2]
[313627432,1707489048946,-505.23460937,0.00025205,2]
[313627433,1707489048955,-500.0,0.00025205,2]
[313627434,1707489048965,-500.0,0.00025205,2]
[313627435,1707489048974,-13876.66,0.00025205,2]
[313627436,1707489048983,-739.4,0.00025205,2]
[313627437,1707489048992,-500.0,0.00025205,2]
[313627438,1707489049001,-500.0,0.00025205,2]
[313627439,1707489049010,-230.8015579,0.00025205,2]
[313627440,1707489049020,-9025.92,0.00025205,2]
[313627441,1707489049032,-234.91297846,0.00025205,2]
[313627442,1707489049041,-1043.53,0.00025205,2]
[313627443,1707489049050,-500.0,0.00025205,2]
[313627444,1707489049060,-10407.67,0.00025205,2]
[313627445,1707489049069,-522.10151487,0.00025205,2]
[313627446,1707489049079,-500.0,0.00025205,2]
[313627447,1707489049088,-500.0,0.00025205,2]
[313627448,1707489049098,-500.0,0.00025205,2]
[313627449,1707489049108,-500.0,0.00025205,2]
[313627450,1707489049117,-1214.01,0.00025205,2]
[313627451,1707489049127,-578.2,0.00025205,2]
[313627452,1707489049137,-1594.38,0.00025205,2]
[313627453,1707489049146,-500.0,0.00025205,2]
[313627454,1707489049156,-513.40922285,0.00025205,2]
[313627455,1707489049166,-5900.13,0.00025205,2]
[313627456,1707489049177,-500.0,0.00025205,2]
[313627457,1707489049186,-500.0,0.00025205,2]
[313627458,1707489049197,-586.22,0.00025205,2]
[313627459,1707489049207,-500.0,0.00025205,2]
[313627460,1707489049217,-1193.84,0.00025205,2]
[313627461,1707489049227,-515.7,0.00025205,2]
[313627462,1707489049237,-500.0,0.00025205,2]
[313627463,1707489049247,-15875.17,0.00025205,2]
[313627464,1707489049256,-500.0,0.00025205,2]
[313627465,1707489049266,-528.20082525,0.00025205,2]
[313627466,1707489049276,-500.0,0.00025205,2]
[313627467,1707489049294,-174.1628,0.00025205,2]
[313627468,1707489049304,-500.0,0.00025205,2]
[313627469,1707489049313,-4115.58,0.00025205,2]
[313627470,1707489049395,-1327.92,0.00025205,2]
[313627471,1707489049406,-5086.52,0.00025205,2]
[313627472,1707489049416,-8628.83,0.00025205,2]
[313627473,1707489049426,-518.17,0.00025205,2]
[313627474,1707489049437,-937.12,0.00025205,2]
[313627475,1707489049448,-2020.9,0.00025205,2]
[313627476,1707489049458,-1216.89,0.00025205,2]
[313627477,1707489049468,-500.0,0.00025205,2]
[313627478,1707489049479,-2000.0,0.0002521,2]
[313627479,1707489049489,-2000.0,0.0002522,2]
[313627480,1707489049498,-2000.0,0.0002523,2]
[313627481,1707489049508,-3088.463251,0.0002524,2]
[313627482,1707489049517,-1111.16821382,0.00025297,2]
[313627483,1707489049527,-1000.0,0.00025425,3]
[313627484,1707489049541,-363.19880555,0.00025464,2]
[313627485,1707489049551,-1000.0,0.00025464,3]
[313627486,1707489049560,-335.35221567,0.00025464,2]
[313627487,1707489049569,-590.60566471,0.00025464,2]
[313627488,1707489049580,-629.76734869,0.00025464,2]
[313627489,1707489049589,-158.13130054,0.00025464,2]
[313627490,1707489049598,-1000.0,0.00025464,3]
[313627491,1707489049608,-527.16435656,0.00025464,2]
[313627492,1707489049620,-1000.0,0.00025464,3]
[313627493,1707489049630,-157.44183718,0.00025464,2]
[313627494,1707489049640,-988.11544766,0.0002547,2]
[313627495,1707489049650,-500.0,0.00025479,2]
[313627496,1707489049661,-1038.92,0.00025479,2]
[313627497,1707489049671,-500.0,0.00025479,2]
[313627498,1707489049681,-500.0,0.00025479,2]
[313627499,1707489049692,-500.0,0.00025479,2]
[313627500,1707489049701,-500.0,0.00025479,2]
[313627501,1707489049711,-1000.0,0.00025479,2]
[313627502,1707489049720,-528.90103496,0.00025479,2]
[313627503,1707489049729,-855.94,0.00025479,2]
[313627504,1707489049739,-500.0,0.00025479,2]
[313627505,1707489049750,-500.0,0.00025479,2]
[313627506,1707489049759,-500.0,0.00025479,2]
[313627507,1707489049769,-1514.43,0.00025479,2]
[313627508,1707489049778,-1005.23,0.00025479,2]
[313627509,1707489049790,-2144.53,0.00025479,2]
[313627510,1707489049799,-500.0,0.00025479,2]
[313627511,1707489049809,-500.0,0.00025479,2]
[313627512,1707489049818,-500.0,0.00025479,2]
[313627513,1707489049827,-577.89,0.00025479,2]
[313627514,1707489049837,-500.40832143,0.00025479,2]
[313627515,1707489049846,-500.0,0.00025479,2]
[313627516,1707489049856,-500.0,0.00025479,2]
[313627517,1707489049865,-628.33,0.00025479,2]
[313627518,1707489049875,-500.0,0.00025479,2]
[313627519,1707489049885,-500.0,0.00025479,2]
[313627520,1707489049895,-500.0,0.00025479,2]
[313627521,1707489049905,-1378.37,0.00025479,2]
[313627522,1707489049914,-7892.94,0.00025479,2]
[313627523,1707489049924,-500.0,0.00025479,2]
[313627524,1707489049934,-500.0,0.00025479,2]
[313627525,1707489049943,-3676.92,0.00025479,2]
[313627526,1707489049953,-500.0,0.00025479,2]
[313627527,1707489049962,-258.87545038,0.00025479,2]
[313627528,1707489049971,-13876.66,0.00025479,2]
[313627529,1707489049981,-739.4,0.00025479,2]
[313627530,1707489049990,-647.3066412,0.00025479,2]
[313627531,1707489049999,-9025.92,0.00025479,2]
[313627532,1707489050009,-1043.53,0.00025479,2]
[313627533,1707489050018,-571.91814808,0.00025479,2]
[313627534,1707489050027,-10407.67,0.00025479,2]
[313627535,1707489050038,-500.0,0.00025479,2]
[313627536,1707489050048,-500.0,0.00025479,2]
[313627537,1707489050057,-260.78921534,0.00025479,2]
[313627538,1707489050067,-1214.01,0.00025479,2]
[313627539,1707489050077,-578.2,0.00025479,2]
[313627540,1707489050086,-1594.38,0.00025479,2]
[313627541,1707489050096,-500.0,0.00025479,2]
[313627542,1707489050105,-5900.13,0.00025479,2]
[313627543,1707489050114,-500.0,0.00025479,2]
[313627544,1707489050123,-586.22,0.00025479,2]
[313627545,1707489050132,-1193.84,0.00025479,2]
[313627546,1707489050142,-515.7,0.00025479,2]
[313627547,1707489050152,-500.0,0.00025479,2]
[313627548,1707489050161,-15875.17,0.00025479,2]
[313627549,1707489050172,-500.0,0.00025479,2]
[313627550,1707489050182,-641.02974925,0.00025479,2]
[313627551,1707489050192,-4115.58,0.00025479,2]
[313627552,1707489050201,-1327.92,0.00025479,2]
[313627553,1707489050211,-5086.52,0.00025479,2]
[313627554,1707489050220,-8628.83,0.00025479,2]
[313627555,1707489050229,-518.17,0.00025479,2]
[313627556,1707489050239,-937.12,0.00025479,2]
[313627557,1707489050249,-2020.9,0.00025479,2]
[313627558,1707489050259,-1216.89,0.00025479,2]
[313627559,1707489050270,-500.0,0.00025479,2]
[313627560,1707489050282,-151.0,0.00025646,2]
[313627561,1707489050292,-621.33023574,0.00025725,2]
[313627562,1707489050302,-273.6182776,0.00025752,2]
[313627563,1707489050312,-500.0,0.00025753,2]
[313627564,1707489050322,-1038.92,0.00025753,2]
[313627565,1707489050333,-500.0,0.00025753,2]
[313627566,1707489050342,-500.0,0.00025753,2]
[313627567,1707489050353,-500.0,0.00025753,2]
[313627568,1707489050363,-500.0,0.00025753,2]
[313627569,1707489050373,-1000.0,0.00025753,2]
[313627570,1707489050383,-855.94,0.00025753,2]
[313627571,1707489050392,-500.0,0.00025753,2]
[313627572,1707489050402,-500.0,0.00025753,2]
[313627573,1707489050411,-1514.43,0.00025753,2]
[313627574,1707489050421,-1005.23,0.00025753,2]
[313627575,1707489050431,-2144.53,0.00025753,2]
[313627576,1707489050441,-500.0,0.00025753,2]
[313627577,1707489050451,-500.0,0.00025753,2]
[313627578,1707489050462,-500.0,0.00025753,2]
[313627579,1707489050472,-577.89,0.00025753,2]
[313627580,1707489050482,-500.0,0.00025753,2]
[313627581,1707489050492,-628.33,0.00025753,2]
[313627582,1707489050502,-500.0,0.00025753,2]
[313627583,1707489050512,-500.0,0.00025753,2]
[313627584,1707489050522,-500.0,0.00025753,2]
[313627585,1707489050534,-1378.37,0.00025753,2]
[313627586,1707489050544,-7892.94,0.00025753,2]
[313627587,1707489050553,-415.32003843,0.00025753,2]
[313627588,1707489050562,-500.0,0.00025753,2]
[313627589,1707489050571,-3676.92,0.00025753,2]
[313627590,1707489050581,-632.06932228,0.00025753,2]
[313627591,1707489050591,-13876.66,0.00025753,2]
[313627592,1707489050600,-739.4,0.00025753,2]
[313627593,1707489050609,-9025.92,0.00025753,2]
[313627594,1707489050619,-1043.53,0.00025753,2]
[313627595,1707489050631,-10407.67,0.00025753,2]
[313627596,1707489050640,-500.0,0.00025753,2]
[313627597,1707489050651,-500.0,0.00025753,2]
[313627598,1707489050661,-1214.01,0.00025753,2]
[313627599,1707489050671,-578.2,0.00025753,2]
[313627600,1707489050682,-1594.38,0.00025753,2]
[313627601,1707489050691,-500.0,0.00025753,2]
[313627602,1707489050700,-5900.13,0.00025753,2]
[313627603,1707489050711,-500.0,0.00025753,2]
[313627604,1707489050721,-586.22,0.00025753,2]
[313627605,1707489050731,-1193.84,0.00025753,2]
[313627606,1707489050741,-515.7,0.00025753,2]
[313627607,1707489050751,-500.0,0.00025753,2]
[313627608,1707489050760,-15875.17,0.00025753,2]
[313627609,1707489050771,-500.0,0.00025753,2]
[313627610,1707489050783,-4115.58,0.00025753,2]
[313627611,1707489050793,-1327.92,0.00025753,2]
[313627612,1707489050804,-5086.52,0.00025753,2]
[313627613,1707489050814,-8628.83,0.00025753,2]
[313627614,1707489050824,-518.17,0.00025753,2]